fUSD/lending_fUSD_20250209
["ID","MTS","AMOUNT","RATE_DAILY","PERIOD"]
[352387022,1739070657893,-909.28,0.00010056,2]
[352387023,1739070657902,-547.43,0.00010056,2]
[352387024,1739070657911,-1050.04,0.00010056,2]
[352387025,1739070657921,-1371.05,0.00010056,2]
[352387026,1739070657931,-737.52,0.00010056,2]
[352387027,1739070657940,-1508.71,0.00010056,2]
[352387028,1739070657949,-500.0,0.00010056,2]
[352387029,1739070657960,-1068.05,0.00010056,2]
[352387030,1739070657969,-834.82,0.00010056,2]
[352387031,1739070657978,-1379.87,0.00010056,2]
[352387032,1739070657988,-1014.14,0.00010056,2]
[352387033,1739070657999,-658.68,0.00010056,2]
[352387034,1739070658009,-607.97,0.00010056,2]
[352387035,1739070658020,-1697.36,0.00010056,2]
[352387036,1739070658031,-500.0,0.00010056,2]
[352387037,1739070658040,-596.74,0.00010056,2]
[352387038,1739070658050,-500.0,0.00010056,2]
[352387039,1739070658059,-615.11,0.00010056,2]
[352387040,1739070658070,-1385.12,0.00010056,2]
[352387041,1739070658080,-1394.41,0.00010056,2]
[352387042,1739070658092,-500.0,0.00010056,2]
[352387043,1739070658103,-765.98,0.00010056,2]
[352387044,1739070658114,-500.0,0.00010056,2]
[352387045,1739070658126,-1068.19,0.00010056,2]
[352387046,1739070658136,-1092.19,0.00010056,2]
[352387047,1739070658146,-783.86,0.00010057,2]
[352387048,1739070658155,-500.0,0.00010057,2]
[352387049,1739070658166,-546.38,0.00010057,2]
[352387050,1739070658176,-500.0,0.00010057,2]
[352387051,1739070658186,-582.67,0.00010057,2]
[352387052,1739070658197,-610.37,0.00010057,2]
[352387053,1739070658207,-554.6,0.00010057,2]
[352387054,1739070658218,-679.76,0.00010057,2]
[352387055,1739070658229,-500.0,0.00010057,2]
[352387056,1739070658240,-679.68,0.00010057,2]
[352387057,1739070658251,-500.0,0.00010057,2]
[352387058,1739070658261,-500.0,0.00010057,2]
[352387059,1739070658271,-500.0,0.00010057,2]
[352387060,1739070658280,-593.48,0.00010057,2]
[352387061,1739070658290,-889.29,0.00010057,2]
[352387062,1739070658301,-500.0,0.00010057,2]
[352387063,1739070658311,-810.1,0.00010057,2]
[352387064,1739070658322,-633.96,0.00010057,2]
[352387065,1739070658332,-500.0,0.00010057,2]
[352387066,1739070658343,-754.46,0.00010057,2]
[352387067,1739070658352,-659.64,0.00010057,2]
[352387068,1739070658361,-500.0,0.00010057,2]
[352387069,1739070658371,-500.0,0.00010057,2]
[352387070,1739070658380,-500.0,0.00010057,2]
[352387071,1739070658389,-874.83,0.00010057,2]
[352387072,1739070658398,-500.0,0.00010057,2]
[352387073,1739070658407,-500.0,0.00010057,2]
[352387074,1739070658416,-1620.89,0.00010057,2]
[352387075,1739070658426,-3345.76,0.00010057,2]
[352387076,1739070658435,-754.89,0.00010057,2]
[352387077,1739070658444,-1109.4,0.00010057,2]
[352387078,1739070658454,-500.47,0.00010057,2]
[352387079,1739070658464,-1150.34,0.00010057,2]
[352387080,1739070658473,-695.7,0.00010057,2]
[352387081,1739070658483,-2327.28,0.00010057,2]
[352387082,1739070658492,-647.49,0.00010057,2]
[352387083,1739070658501,-1000.59,0.00010057,2]
[352387084,1739070658512,-397.639049,0.00010057,2]
[352387085,1739070658521,-500.0,0.00010057,2]
[352387086,1739070658531,-1611.82,0.00010057,2]
[352387087,1739070658541,-1952.62,0.00010057,2]
[352387088,1739070658552,-500.0,0.00010057,2]
[352387089,1739070658562,-749.79,0.00010057,2]
[352387090,1739070658571,-1684.14,0.00010057,2]
[352387091,1739070658581,-500.0,0.00010057,2]
[352387092,1739070658591,-925.13,0.00010057,2]
[352387093,1739070658601,-500.0,0.00010057,2]
[352387094,1739070658611,-949.51,0.00010057,2]
[352387095,1739070658621,-500.0,0.00010057,2]
[352387096,1739070658632,-1846.83,0.00010057,2]
[352387097,1739070658644,-743.04,0.00010057,2]
[352387098,1739070658655,-236.44022424,0.00010057,2]
[352387099,1739070658665,-1059.85,0.00010057,2]
[352387100,1739070658677,-1037.16,0.00010057,2]
[352387101,1739070658687,-646.75,0.00010057,2]
[352387102,1739070658697,-665.55,0.00010057,2]
[352387103,1739070658707,-1438.11,0.00010057,2]
[352387104,1739070658717,-942.24,0.00010057,2]
[352387105,1739070658727,-500.0,0.00010057,2]
[352387106,1739070658737,-1314.92,0.00010057,2]
[352387107,1739070658747,-365.840801,0.00010057,2]
[352387108,1739070658756,-500.0,0.00010057,2]
[352387109,1739070658766,-2065.47,0.00010057,2]
[352387110,1739070658775,-511.31,0.00010057,2]
[352387111,1739070658785,-1101.11,0.00010057,2]
[352387112,1739070658794,-674.03,0.00010057,2]
[352387113,1739070658804,-852.01,0.00010057,2]
[352387114,1739070658813,-562.05,0.00010057,2]
[352387115,1739070658822,-990.87,0.00010057,2]
[352387116,1739070658831,-1999.96,0.00010057,2]
[352387117,1739070658840,-908.17,0.00010057,2]
[352387118,1739070658850,-1172.99,0.00010057,2]
[352387119,1739070658859,-938.86,0.00010057,2]
[352387120,1739070658869,-1326.26,0.00010057,2]
[352387121,1739070658878,-942.96,0.00010057,2]
[352387122,1739070658887,-500.0,0.00010057,2]
[352387123,1739070658896,-1618.75,0.00010057,2]
[352387124,1739070658905,-500.0,0.00010057,2]
[352387125,1739070658915,-1188.69,0.00010057,2]
[352387126,1739070658924,-500.0,0.00010057,2]
[352387127,1739070658934,-909.97,0.00010057,2]
[352387128,1739070658944,-500.0,0.00010057,2]
[352387129,1739070658953,-500.0,0.00010057,2]
[352387130,1739070658963,-2016.52,0.00010057,2]
[352387131,1739070658972,-500.0,0.00010057,2]
[352387132,1739070658982,-747.37,0.00010057,2]
[352387133,1739070658991,-500.0,0.00010057,2]
[352387134,1739070659002,-627.38,0.00010057,2]
[352387135,1739070659012,-849.78,0.00010057,2]
[352387136,1739070659023,-1293.83,0.00010057,2]
[352387137,1739070659033,-500.0,0.00010057,2]
[352387138,1739070659044,-1117.25,0.00010057,2]
[352387139,1739070659055,-743.07,0.00010057,2]
[352387140,1739070659064,-500.0,0.00010057,2]
[352387141,1739070659075,-1144.01,0.00010057,2]
[352387142,1739070659086,-1165.1,0.00010057,2]
[352387143,1739070659096,-1163.27,0.00010057,2]
[352387144,1739070659105,-500.0,0.00010057,2]
[352387145,1739070659117,-1225.85,0.00010057,2]
[352387146,1739070659127,-500.0,0.00010057,2]
[352387147,1739070659137,-2077.15,0.00010057,2]
[352387148,1739070659147,-510.92,0.00010057,2]
[352387149,1739070659157,-500.0,0.00010057,2]
[352387150,1739070659166,-2895.63,0.00010057,2]
[352387151,1739070659176,-792.12,0.00010057,2]
[352387152,1739070659186,-500.0,0.00010057,2]
[352387153,1739070659195,-621.64,0.00010057,2]
[352387154,1739070659205,-943.3,0.00010057,2]
[352387155,1739070659215,-888.78,0.00010057,2]
[352387156,1739070659225,-2184.57,0.00010057,2]
[352387157,1739070659234,-500.0,0.00010057,2]
[352387158,1739070659244,-500.0,0.00010057,2]
[352387159,1739070659254,-500.0,0.00010058,2]
[352387160,1739070659264,-500.0,0.00010058,2]
[352387161,1739070659273,-500.0,0.00010058,2]
[352387162,1739070659283,-500.0,0.00010058,2]
[352387163,1739070659292,-500.0,0.00010058,2]
[352387164,1739070659302,-645.83,0.00010058,2]
[352387165,1739070659312,-537.94,0.00010058,2]
[352387166,1739070659321,-626.07,0.00010058,2]
[352387167,1739070659331,-629.29,0.00010058,2]
[352387168,1739070659340,-500.0,0.00010058,2]
[352387169,1739070659350,-685.36,0.00010058,2]
[352387170,1739070659359,-500.0,0.00010058,2]
[352387171,1739070659369,-500.0,0.00010058,2]
[352387172,1739070659378,-821.11,0.00010058,2]
[352387173,1739070659388,-250.97984452,0.00010058,2]
[352387174,1739070659397,-881.28,0.00010058,2]
[352387175,1739070659406,-889.48,0.00010058,2]
[352387176,1739070659416,-500.0,0.00010058,2]
[352387177,1739070659426,-1000.0,0.00010088,2]
[352387178,1739070659435,-744.85404949,0.00010095,2]
[352387179,1739070659445,-505.52119491,0.00010125,2]
[352387180,1739070659455,-502.85181663,0.00010125,2]
[352387181,1739070659465,-500.79937832,0.00010125,2]
[352387182,1739070659475,-609.0935578,0.00010125,2]
[352387183,1739070659485,-508.42475465,0.00010125,2]
[352387184,1739070659495,-501.72814391,0.00010125,2]
[352387185,1739070659506,-501.12727757,0.00010125,2]
[352387186,1739070659515,-483.17373843,0.00010135,2]
[352387187,1739070659525,-500.0,0.00010135,2]
[352387188,1739070659535,-374.77,0.00010137,2]
[352387189,1739070659546,-160.81,0.00010137,2]
[352387190,1739070659558,-150.0,0.00010152,2]
[352387191,1739070659567,-875.68,0.00010193,2]
[352387192,1739070659577,-659.36,0.00010193,2]
[352387193,1739070659587,-909.28,0.00010193,2]
[352387194,1739070659598,-547.43,0.00010193,2]
[352387195,1739070659608,-1050.04,0.00010193,2]
[352387196,1739070659618,-1371.05,0.00010193,2]
[352387197,1739070659630,-737.52,0.00010193,2]
[352387198,1739070659643,-1508.71,0.00010193,2]
[352387199,1739070659653,-500.0,0.00010193,2]
[352387200,1739070659664,-1068.05,0.00010193,2]
[352387201,1739070659675,-834.82,0.00010193,2]
[352387202,1739070659684,-1379.87,0.00010193,2]
[352387203,1739070659695,-1014.14,0.00010193,2]
[352387204,1739070659705,-658.68,0.00010193,2]
[352387205,1739070659716,-607.97,0.00010193,2]
[352387206,1739070659727,-1697.36,0.00010193,2]
[352387207,1739070659739,-500.0,0.00010193,2]
[352387208,1739070659749,-596.74,0.00010193,2]
[352387209,1739070659758,-588.04653127,0.00010193,2]
[352387210,1739070659768,-615.11,0.00010193,2]
[352387211,1739070659779,-1385.12,0.00010193,2]
[352387212,1739070659789,-1394.41,0.00010193,2]
[352387213,1739070659977,-500.0,0.00010193,2]
[352387214,1739070659988,-765.98,0.00010193,2]
[352387215,1739070659999,-308.5840773,0.00010193,2]
[352387216,1739070660010,-1068.19,0.00010193,2]
[352387217,1739070660020,-1092.19,0.00010193,2]
[352387218,1739070660030,-783.86,0.00010194,2]
[352387219,1739070660039,-500.0,0.00010194,2]
[352387220,1739070660051,-546.38,0.00010194,2]
[352387221,1739070660061,-500.0,0.00010194,2]
[352387222,1739070660071,-582.67,0.00010194,2]
[352387223,1739070660081,-610.37,0.00010194,2]
[352387224,1739070660091,-554.6,0.00010194,2]
[352387225,1739070660100,-679.76,0.00010194,2]
[352387226,1739070660110,-500.0,0.00010194,2]
[352387227,1739070660119,-679.68,0.00010194,2]
[352387228,1739070660130,-500.0,0.00010194,2]
[352387229,1739070660140,-500.0,0.00010194,2]
[352387230,1739070660150,-500.0,0.00010194,2]
[352387231,1739070660160,-593.48,0.00010194,2]
[352387232,1739070660169,-889.29,0.00010194,2]
[352387233,1739070660180,-500.0,0.00010194,2]
[352387234,1739070660190,-810.1,0.00010194,2]
[352387235,1739070660200,-633.96,0.00010194,2]
[352387236,1739070660210,-500.0,0.00010194,2]
[352387237,1739070660221,-754.46,0.00010194,2]
[352387238,1739070660230,-659.64,0.00010194,2]
[352387239,1739070660240,-500.0,0.00010194,2]
[352387240,1739070660249,-500.0,0.00010194,2]
[352387241,1739070660259,-500.0,0.00010194,2]
[352387242,1739070660269,-874.83,0.00010194,2]
[352387243,1739070660279,-500.0,0.00010194,2]
[352387244,1739070660288,-500.0,0.00010194,2]
[352387245,1739070660299,-1620.89,0.00010194,2]
[352387246,1739070660308,-3345.76,0.00010194,2]
[352387247,1739070660318,-754.89,0.00010194,2]
[352387248,1739070660327,-1109.4,0.00010194,2]
[352387249,1739070660336,-500.47,0.00010194,2]
[352387250,1739070660346,-1150.34,0.00010194,2]
[352387251,1739070660355,-695.7,0.00010194,2]
[352387252,1739070660365,-2327.28,0.00010194,2]
[352387253,1739070660375,-647.49,0.00010194,2]
[352387254,1739070660385,-1000.59,0.00010194,2]
[352387255,1739070660394,-397.639049,0.00010194,2]
[352387256,1739070660404,-500.0,0.00010194,2]
[352387257,1739070660414,-1611.82,0.00010194,2]
[352387258,1739070660424,-1952.62,0.00010194,2]
[352387259,1739070660433,-500.0,0.00010194,2]
[352387260,1739070660443,-749.79,0.00010194,2]
[352387261,1739070660453,-1684.14,0.00010194,2]
[352387262,1739070660463,-500.0,0.00010194,2]
[352387263,1739070660473,-925.13,0.00010194,2]
[352387264,1739070660483,-500.0,0.00010194,2]
[352387265,1739070660493,-949.51,0.00010194,2]
[352387266,1739070660503,-500.0,0.00010194,2]
[352387267,1739070660512,-1846.83,0.00010194,2]
[352387268,1739070660522,-743.04,0.00010194,2]
[352387269,1739070660532,-1059.85,0.00010194,2]
[352387270,1739070660541,-1037.16,0.00010194,2]
[352387271,1739070660552,-646.75,0.00010194,2]
[352387272,1739070660561,-665.55,0.00010194,2]
[352387273,1739070660571,-1438.11,0.00010194,2]
[352387274,1739070660580,-942.24,0.00010194,2]
[352387275,1739070660590,-500.0,0.00010194,2]
[352387276,1739070660599,-1314.92,0.00010194,2]
[352387277,1739070660609,-365.840801,0.00010194,2]
[352387278,1739070660618,-500.0,0.00010194,2]
[352387279,1739070660629,-2065.47,0.00010194,2]
[352387280,1739070660640,-511.31,0.00010194,2]
[352387281,1739070660650,-1101.11,0.00010194,2]
[352387282,1739070660659,-674.03,0.00010194,2]
[352387283,1739070660669,-852.01,0.00010194,2]
[352387284,1739070660679,-562.05,0.00010194,2]
[352387285,1739070660689,-990.87,0.00010194,2]
[352387286,1739070660698,-1999.96,0.00010194,2]
[352387287,1739070660710,-908.17,0.00010194,2]
[352387288,1739070660720,-1172.99,0.00010194,2]
[352387289,1739070660729,-938.86,0.00010194,2]
[352387290,1739070660739,-1326.26,0.00010194,2]
[352387291,1739070660748,-942.96,0.00010194,2]
[352387292,1739070660757,-500.0,0.00010194,2]
[352387293,1739070660767,-1618.75,0.00010194,2]
[352387294,1739070660776,-500.0,0.00010194,2]
[352387295,1739070660786,-1188.69,0.00010194,2]
[352387296,1739070660795,-500.0,0.00010194,2]
[352387297,1739070660805,-909.97,0.00010194,2]
[352387298,1739070660815,-500.0,0.00010194,2]
[352387299,1739070660825,-500.0,0.00010194,2]
[352387300,1739070660834,-2016.52,0.00010194,2]
[352387301,1739070660844,-500.0,0.00010194,2]
[352387302,1739070660854,-747.37,0.00010194,2]
[352387303,1739070660864,-500.0,0.00010194,2]
[352387304,1739070660874,-627.38,0.00010194,2]
[352387305,1739070660884,-849.78,0.00010194,2]
[352387306,1739070660893,-1293.83,0.00010194,2]
[352387307,1739070660903,-500.0,0.00010194,2]
[352387308,1739070660913,-1117.25,0.00010194,2]
[352387309,1739070660923,-743.07,0.00010194,2]
[352387310,1739070660932,-500.0,0.00010194,2]
[352387311,1739070660941,-1144.01,0.00010194,2]
[352387312,1739070660951,-1165.1,0.00010194,2]
[352387313,1739070660960,-1163.27,0.00010194,2]
[352387314,1739070660970,-500.0,0.00010194,2]
[352387315,1739070660979,-1225.85,0.00010194,2]
[352387316,1739070660989,-500.0,0.00010194,2]
[352387317,1739070660999,-2077.15,0.00010194,2]
[352387318,1739070661009,-510.92,0.00010194,2]
[352387319,1739070661019,-500.0,0.00010194,2]
[352387320,1739070661028,-2895.63,0.00010194,2]
[352387321,1739070661038,-792.12,0.00010194,2]
[352387322,1739070661047,-500.0,0.00010194,2]
[352387323,1739070661057,-621.64,0.00010194,2]
[352387324,1739070661066,-943.3,0.00010194,2]
[352387325,1739070661075,-888.78,0.00010194,2]
[352387326,1739070661085,-2184.57,0.00010194,2]
[352387327,1739070661094,-500.0,0.00010194,2]
[352387328,1739070661104,-500.0,0.00010194,2]
[352387329,1739070661113,-500.0,0.00010195,2]
[352387330,1739070661122,-500.0,0.00010195,2]
[352387331,1739070661131,-500.0,0.00010195,2]
[352387332,1739070661141,-500.0,0.00010195,2]
[352387333,1739070661150,-500.0,0.00010195,2]
[352387334,1739070661159,-645.83,0.00010195,2]
[352387335,1739070661169,-537.94,0.00010195,2]
[352387336,1739070661179,-626.07,0.00010195,2]
[352387337,1739070661189,-629.29,0.00010195,2]
[352387338,1739070661200,-500.0,0.00010195,2]
[352387339,1739070661212,-685.36,0.00010195,2]
[352387340,1739070661222,-500.0,0.00010195,2]
[352387341,1739070661233,-616.73192721,0.00010195,2]
[352387342,1739070661243,-821.11,0.00010195,2]
[352387343,1739070661253,-881.28,0.00010195,2]
[352387344,1739070661263,-889.48,0.00010195,2]
[352387345,1739070661273,-304.88558797,0.00010195,2]
[352387346,1739070661284,-500.0,0.00010272,2]
[352387347,1739070661295,-875.68,0.0001033,2]
[352387348,1739070661306,-659.36,0.0001033,2]
[352387349,1739070661315,-909.28,0.0001033,2]
[352387350,1739070661326,-547.43,0.0001033,2]
[352387351,1739070661336,-1050.04,0.0001033,2]
[352387352,1739070661347,-1371.05,0.0001033,2]
[352387353,1739070661358,-737.52,0.0001033,2]
[352387354,1739070661369,-1508.71,0.0001033,2]
[352387355,1739070661379,-500.0,0.0001033,2]
[352387356,1739070661390,-1068.05,0.0001033,2]
[352387357,1739070661399,-834.82,0.0001033,2]
[352387358,1739070661411,-1379.87,0.0001033,2]
[352387359,1739070661421,-1014.14,0.0001033,2]
[352387360,1739070661431,-658.68,0.0001033,2]
[352387361,1739070661440,-607.97,0.0001033,2]
[352387362,1739070661449,-1697.36,0.0001033,2]
[352387363,1739070661459,-500.0,0.0001033,2]
[352387364,1739070661468,-596.74,0.0001033,2]
[352387365,1739070661477,-615.11,0.0001033,2]
[352387366,1739070661486,-1385.12,0.0001033,2]
[352387367,1739070661496,-1394.41,0.0001033,2]
[352387368,1739070661505,-500.0,0.0001033,2]
[352387369,1739070661514,-765.98,0.0001033,2]
[352387370,1739070661523,-1068.19,0.0001033,2]
[352387371,1739070661532,-1092.19,0.0001033,2]
[352387372,1739070661541,-783.86,0.00010331,2]
[352387373,1739070661552,-500.0,0.00010331,2]
[352387374,1739070661561,-546.38,0.00010331,2]
[352387375,1739070661572,-500.0,0.00010331,2]
[352387376,1739070661581,-582.67,0.00010331,2]
[352387377,1739070661591,-610.37,0.00010331,2]
[352387378,1739070661600,-554.6,0.00010331,2]
[352387379,1739070661609,-679.76,0.00010331,2]
[352387380,1739070661618,-500.0,0.00010331,2]
[352387381,1739070661628,-679.68,0.00010331,2]
[352387382,1739070661640,-500.0,0.00010331,2]
[352387383,1739070661649,-500.0,0.00010331,2]
[352387384,1739070661659,-500.0,0.00010331,2]
[352387385,1739070661668,-593.48,0.00010331,2]
[352387386,1739070661679,-889.29,0.00010331,2]
[352387387,1739070661688,-500.0,0.00010331,2]
[352387388,1739070661697,-810.1,0.00010331,2]
[352387389,1739070661706,-633.96,0.00010331,2]
[352387390,1739070661716,-500.0,0.00010331,2]
[352387391,1739070661726,-754.46,0.00010331,2]
[352387392,1739070661735,-659.64,0.00010331,2]
[352387393,1739070661745,-500.0,0.00010331,2]
[352387394,1739070661754,-276.44918915,0.00010331,2]
[352387395,1739070661763,-500.0,0.00010331,2]
[352387396,1739070661773,-874.83,0.00010331,2]
[352387397,1739070661782,-500.0,0.00010331,2]
[352387398,1739070661791,-500.0,0.00010331,2]
[352387399,1739070661802,-1620.89,0.00010331,2]
[352387400,1739070661811,-3345.76,0.00010331,2]
[352387401,1739070661820,-754.89,0.00010331,2]
[352387402,1739070661830,-1109.4,0.00010331,2]
[352387403,1739070661839,-500.47,0.00010331,2]
[352387404,1739070661848,-1150.34,0.00010331,2]
[352387405,1739070661857,-695.7,0.00010331,2]
[352387406,1739070661866,-2327.28,0.00010331,2]
[352387407,1739070661875,-647.49,0.00010331,2]
[352387408,1739070661884,-1000.59,0.00010331,2]
[352387409,1739070661893,-397.639049,0.00010331,2]
[352387410,1739070661902,-500.0,0.00010331,2]
[352387411,1739070661912,-1611.82,0.00010331,2]
[352387412,1739070661922,-1952.62,0.00010331,2]
[352387413,1739070661930,-500.0,0.00010331,2]
[352387414,1739070661939,-749.79,0.00010331,2]
[352387415,1739070661948,-1684.14,0.00010331,2]
[352387416,1739070661957,-500.0,0.00010331,2]
[352387417,1739070661967,-925.13,0.00010331,2]
[352387418,1739070661976,-949.51,0.00010331,2]
[352387419,1739070661986,-500.0,0.00010331,2]
[352387420,1739070661996,-1846.83,0.00010331,2]
[352387421,1739070662005,-743.04,0.00010331,2]
[352387422,1739070662014,-1059.85,0.00010331,2]
[352387423,1739070662023,-1037.16,0.00010331,2]
[352387424,1739070662032,-646.75,0.00010331,2]
[352387425,1739070662041,-665.55,0.00010331,2]
[352387426,1739070662051,-1438.11,0.00010331,2]
[352387427,1739070662060,-942.24,0.00010331,2]
[352387428,1739070662070,-500.0,0.00010331,2]
[352387429,1739070662079,-1314.92,0.00010331,2]
[352387430,1739070662088,-365.840801,0.00010331,2]
[352387431,1739070662097,-500.0,0.00010331,2]
[352387432,1739070662106,-2065.47,0.00010331,2]
[352387433,1739070662116,-511.31,0.00010331,2]
[352387434,1739070662127,-1101.11,0.00010331,2]
[352387435,1739070662138,-674.03,0.00010331,2]
[352387436,1739070662148,-852.01,0.00010331,2]
[352387437,1739070662157,-562.05,0.00010331,2]
[352387438,1739070662166,-990.87,0.00010331,2]
[352387439,1739070662175,-1999.96,0.00010331,2]
[352387440,1739070662185,-908.17,0.00010331,2]
[352387441,1739070662194,-1172.99,0.00010331,2]
[352387442,1739070662204,-938.86,0.00010331,2]
[352387443,1739070662219,-1326.26,0.00010331,2]
[352387444,1739070662229,-942.96,0.00010331,2]
[352387445,1739070662239,-500.0,0.00010331,2]
[352387446,1739070662248,-1618.75,0.00010331,2]
[352387447,1739070662258,-500.0,0.00010331,2]
[352387448,1739070662270,-1188.69,0.00010331,2]
[352387449,1739070662280,-500.0,0.00010331,2]
[352387450,1739070662344,-909.97,0.00010331,2]
[352387451,1739070662355,-500.0,0.00010331,2]
[352387452,1739070662367,-174.70916627,0.00010331,2]
[352387453,1739070662379,-2016.52,0.00010331,2]
[352387454,1739070662390,-500.0,0.00010331,2]
[352387455,1739070662400,-747.37,0.00010331,2]
[352387456,1739070662409,-500.0,0.00010331,2]
[352387457,1739070662418,-627.38,0.00010331,2]
[352387458,1739070662427,-849.78,0.00010331,2]
[352387459,1739070662436,-1293.83,0.00010331,2]
[352387460,1739070662446,-500.0,0.00010331,2]
[352387461,1739070662456,-1117.25,0.00010331,2]
[352387462,1739070662466,-743.07,0.00010331,2]
[352387463,1739070662475,-500.0,0.00010331,2]
[352387464,1739070662484,-1144.01,0.00010331,2]
[352387465,1739070662494,-1165.1,0.00010331,2]
[352387466,1739070662503,-1163.27,0.00010331,2]
[352387467,1739070662512,-500.0,0.00010331,2]
[352387468,1739070662521,-1225.85,0.00010331,2]
[352387469,1739070662531,-500.0,0.00010331,2]
[352387470,1739070662540,-2077.15,0.00010331,2]
[352387471,1739070662549,-510.92,0.00010331,2]
[352387472,1739070662559,-500.0,0.00010331,2]
[352387473,1739070662568,-2895.63,0.00010331,2]
[352387474,1739070662577,-792.12,0.00010331,2]
[352387475,1739070662587,-500.0,0.00010331,2]
[352387476,1739070662596,-621.64,0.00010331,2]
[352387477,1739070662605,-943.3,0.00010331,2]
[352387478,1739070662614,-888.78,0.00010331,2]
[352387479,1739070662623,-2184.57,0.00010331,2]
[352387480,1739070662636,-500.0,0.00010331,2]
[352387481,1739070662645,-500.0,0.00010331,2]
[352387482,1739070662654,-500.0,0.00010332,2]
[352387483,1739070662663,-500.0,0.00010332,2]
[352387484,1739070662672,-500.0,0.00010332,2]
[352387485,1739070662681,-500.0,0.00010332,2]
[352387486,1739070662690,-500.0,0.00010332,2]
[352387487,1739070662699,-645.83,0.00010332,2]
[352387488,1739070662708,-537.94,0.00010332,2]
[352387489,1739070662718,-626.07,0.00010332,2]
[352387490,1739070662727,-629.29,0.00010332,2]
[352387491,1739070662736,-500.0,0.00010332,2]
[352387492,1739070662745,-685.36,0.00010332,2]
[352387493,1739070662754,-500.0,0.00010332,2]
[352387494,1739070662763,-821.11,0.00010332,2]
[352387495,1739070662772,-881.28,0.00010332,2]
[352387496,1739070662780,-889.48,0.00010332,2]
[352387497,1739070662790,-372.35,0.00010401,2]
[352387498,1739070662800,-889.06,0.00010405,2]
[352387499,1739070662810,-500.0,0.00010409,2]
[352387500,1739070662819,-1000.0,0.00010413,2]
[352387501,1739070662828,-875.68,0.00010467,2]
[352387502,1739070662838,-659.36,0.00010467,2]
[352387503,1739070662847,-909.28,0.00010467,2]
[352387504,1739070662857,-547.43,0.00010467,2]
[352387505,1739070662866,-1050.04,0.00010467,2]
[352387506,1739070662875,-1371.05,0.00010467,2]
[352387507,1739070662883,-737.52,0.00010467,2]
[352387508,1739070662892,-1508.71,0.00010467,2]
[352387509,1739070662902,-500.0,0.00010467,2]
[352387510,1739070662911,-1068.05,0.00010467,2]
[352387511,1739070662920,-834.82,0.00010467,2]
[352387512,1739070662929,-1379.87,0.00010467,2]
[352387513,1739070662938,-1014.14,0.00010467,2]
[352387514,1739070662948,-658.68,0.00010467,2]
[352387515,1739070662957,-607.97,0.00010467,2]
[352387516,1739070662966,-1697.36,0.00010467,2]
[352387517,1739070662975,-500.0,0.00010467,2]
[352387518,1739070662984,-596.74,0.00010467,2]
[352387519,1739070662994,-615.11,0.00010467,2]
[352387520,1739070663003,-1385.12,0.00010467,2]
[352387521,1739070663012,-1394.41,0.00010467,2]